bitfinex-derivatives/quotes_BTCF0:USTF0_20251108
["timestamp","ask_amount","ask_price","bid_price","bid_amount"]
[1762568995481,0.154029,103310.0,103300.0,0.5768796]
[1762568997097,0.154029,103310.0,103300.0,0.9376796]
[1762568997292,0.05717,103310.0,103300.0,0.9376796]
[1762568998097,0.154029,103310.0,103300.0,0.9376796]
[1762568999700,0.05717,103310.0,103300.0,0.9376796]
[1762569002400,0.154029,103310.0,103300.0,0.9376796]
[1762569002892,0.05717,103310.0,103300.0,0.9376796]
[1762569007098,0.154029,103310.0,103300.0,0.9376796]
[1762569007697,0.05717,103310.0,103300.0,0.9376796]
[1762569007900,0.154029,103310.0,103300.0,0.9376796]
[1762569008100,0.154029,103310.0,103300.0,0.8408112]
[1762569008398,0.22353912,103310.0,103300.0,0.9376796]
[1762569014510,0.22353912,103310.0,103300.0,0.827614]
[1762569014704,0.22353912,103310.0,103300.0,0.9376796]
[1762569015206,0.154029,103310.0,103300.0,0.9376796]
[1762569016704,0.05717,103310.0,103300.0,0.9376796]
[1762569019198,0.154029,103310.0,103300.0,0.9376796]
[1762569020208,0.12668012,103310.0,103300.0,0.9376796]
[1762569022104,0.05717,103310.0,103300.0,0.9376796]
[1762569022305,0.12668012,103310.0,103300.0,0.9376796]
[1762569022910,0.22353912,103310.0,103300.0,0.9376796]
[1762569024910,0.22353912,103310.0,103300.0,0.8408112]
[1762569026403,0.22353912,103310.0,103300.0,0.9376796]
[1762569029708,0.12668012,103310.0,103300.0,0.9376796]
[1762569032211,0.22353912,103310.0,103300.0,0.9376796]
[1762569033511,0.22353912,103310.0,103300.0,0.827614]
[1762569033814,0.154029,103310.0,103300.0,0.0091456]
[1762569034513,0.514829,103310.0,103300.0,0.0091456]
[1762569034715,0.60184449,103310.0,103300.0,0.0091456]
[1762569034915,0.6366498,103310.0,103300.0,0.0091456]
[1762569035210,0.514829,103310.0,103300.0,0.0091456]
[1762569035610,0.6366498,103310.0,103300.0,0.0091456]
[1762569036011,0.514829,103310.0,103300.0,0.0091456]
[1762569036214,0.60192162,103310.0,103300.0,0.0091456]
[1762569038006,0.24112162,103310.0,103300.0,0.3699456]
[1762569038211,0.154029,103310.0,103300.0,0.5768796]
[1762569038407,0.05717,103310.0,103300.0,0.5768796]
[1762569038614,0.12679919,103310.0,103300.0,0.5768796]
[1762569039816,0.22365819,103310.0,103300.0,0.5768796]
[1762569040117,0.12679919,103310.0,103300.0,0.5768796]
[1762569040318,0.12679919,103310.0,103300.0,0.63187948]
[1762569042517,0.22365819,103310.0,103300.0,0.63187948]
[1762569045417,0.22365819,103310.0,103300.0,0.53501108]
[1762569045815,0.24112162,103310.0,103300.0,0.63187948]
[1762569046312,0.24112162,103310.0,103300.0,0.53501108]
[1762569046817,0.24112162,103310.0,103300.0,0.45247834]
[1762569047809,0.32365436,103310.0,103300.0,0.3699456]
[1762569048015,0.32365436,103310.0,103300.0,0.0091456]
[1762569048215,0.24112162,103310.0,103300.0,0.0091456]
[1762569048520,0.32365436,103310.0,103300.0,0.0091456]
[1762569049014,0.35838254,103310.0,103300.0,0.09167834]
[1762569049807,0.2758498,103310.0,103300.0,0.09167834]
[1762569050121,0.2758498,103310.0,103300.0,0.18854674]
[1762569050619,0.2758498,103310.0,103300.0,0.0091456]
[1762569050819,0.2758498,103310.0,103300.0,0.09167834]
[1762569051211,0.6366498,103310.0,103300.0,0.09167834]
[1762569051924,0.6366498,103310.0,103300.0,0.0091456]
[1762569052221,0.6366498,103310.0,103300.0,0.09167834]
[1762569052418,0.71918254,103310.0,103300.0,0.0091456]
[1762569052623,0.80622618,103310.0,103300.0,0.0091456]
[1762569052823,0.80622618,103310.0,103290.0,0.3608]
[1762569052824,0.1521984,103300.0,103290.0,0.3608]
[1762569053023,0.32177478,103300.0,103290.0,0.3608]
[1762569053224,0.1522078,103290.0,103280.0,0.44333274]
[1762569053523,0.23925144,103290.0,103280.0,0.44333274]
[1762569055521,0.23925144,103290.0,103280.0,0.45433274]
[1762569055721,0.23925144,103290.0,103280.0,0.55121984]
[1762569055919,0.22181718,103290.0,103280.0,0.46533274]
[1762569059025,0.22181718,103290.0,103280.0,0.56221984]
[1762569060828,0.22181718,103290.0,103280.0,0.46533274]
[1762569062725,0.1522078,103290.0,103280.0,0.3828]
[1762569062923,0.1522078,103290.0,103280.0,0.46533274]
[1762569064530,0.22181718,103290.0,103280.0,0.46533274]
[1762569064723,0.1522078,103290.0,103280.0,0.56221984]
[1762569065831,0.1522078,103290.0,103280.0,0.64475258]
[1762569066530,0.12493938,103290.0,103280.0,0.64475258]
[1762569069128,0.01273,103290.0,103280.0,0.64475258]
[1762569069528,0.03394,103290.0,103280.0,0.64475258]
[1762569069831,0.05497,103290.0,103280.0,0.64475258]
[1762569070031,0.17935638,103300.0,103290.0,0.0968778]
[1762569070032,0.10369498,103300.0,103290.0,0.0968778]
[1762569070337,0.12472498,103300.0,103290.0,0.54021054]
[1762569070927,0.22159338,103300.0,103290.0,0.54021054]
[1762569071229,0.22159338,103300.0,103290.0,0.54921054]
[1762569071432,0.12472498,103300.0,103290.0,0.54921054]
[1762569071638,0.12472498,103300.0,103290.0,0.55821054]
[1762569072035,0.0340856,103300.0,103290.0,0.64074328]
[1762569072334,0.0128756,103300.0,103290.0,0.64074328]
[1762569072635,0.0340856,103300.0,103290.0,0.64074328]
[1762569073428,0.151984,103300.0,103290.0,0.4756778]
[1762569073631,0.151984,103300.0,103290.0,0.55821054]
[1762569075434,0.0128756,103300.0,103290.0,0.64074328]
[1762569075735,0.0551156,103300.0,103290.0,0.64074328]
[1762569077130,0.151984,103300.0,103290.0,0.64074328]
[1762569077330,0.151984,103300.0,103290.0,0.55821054]
[1762569077823,0.151984,103300.0,103290.0,0.4756778]
[1762569078027,0.0551156,103300.0,103290.0,0.55821054]
[1762569079626,0.10731079,103300.0,103290.0,0.55821054]
[1762569081637,0.20417919,103300.0,103290.0,0.4756778]
[1762569081831,0.20417919,103300.0,103290.0,0.55821054]
[1762569082031,0.0551156,103300.0,103290.0,0.4756778]
[1762569082234,0.10730353,103300.0,103290.0,0.55821054]
[1762569083841,0.20417193,103300.0,103290.0,0.55821054]
[1762569085435,0.22159338,103300.0,103290.0,0.55821054]
[1762569085941,0.151984,103300.0,103290.0,0.55821054]
[1762569086645,0.22159338,103300.0,103290.0,0.55821054]
[1762569086940,0.151984,103300.0,103290.0,0.55821054]
[1762569087141,0.22159338,103300.0,103290.0,0.55821054]
[1762569088140,0.30412612,103300.0,103290.0,0.3788]
[1762569088443,0.32156038,103300.0,103290.0,0.3788]
[1762569091247,0.68236038,103300.0,103290.0,0.018]
[1762569092242,0.32156038,103300.0,103290.0,0.018]
[1762569095541,0.32156038,103300.0,103290.0,0.1148778]
[1762569095948,0.23451674,103300.0,103290.0,0.1148778]
[1762569096136,0.23451674,103300.0,103290.0,0.19741054]
[1762569096339,0.35633754,103300.0,103290.0,0.19741054]
[1762569096740,0.35633754,103300.0,103290.0,0.55821054]
[1762569096935,0.32156717,103300.0,103290.0,0.46133274]
[1762569097142,0.68236717,103300.0,103290.0,0.10053274]
[1762569097343,0.71713754,103300.0,103290.0,0.10053274]
[1762569097646,0.71713754,103300.0,103290.0,0.018]
[1762569098351,0.71713754,103300.0,103290.0,0.1148778]
[1762569099055,0.71713754,103300.0,103290.0,0.018]
[1762569099654,0.71713754,103300.0,103290.0,0.1148778]
[1762569099951,0.71713754,103300.0,103290.0,0.018]
[1762569101049,0.35633754,103300.0,103290.0,0.018]
[1762569101246,0.44338045,103300.0,103290.0,0.4756778]
[1762569101446,0.32155965,103300.0,103290.0,0.4756778]
[1762569102352,0.23902691,103300.0,103290.0,0.4756778]
[1762569105356,0.23902691,103300.0,103290.0,0.3788]
[1762569105556,0.23902691,103300.0,103290.0,0.018]
[1762569105855,0.70994332,103300.0,103290.0,0.018]
[1762569106556,0.62290041,103300.0,103290.0,0.018]
[1762569106766,0.74472121,103300.0,103290.0,0.018]
[1762569107253,0.83177577,103300.0,103290.0,0.018]
[1762569107451,0.70995497,103300.0,103290.0,0.018]
[1762569109166,0.62290041,103300.0,103290.0,0.018]
[1762569109854,0.7099579,103300.0,103290.0,0.018]
[1762569112273,0.74472121,103300.0,103290.0,0.018]
[1762569113670,0.83180708,103300.0,103290.0,0.018]
[1762569113870,0.74472121,103300.0,103290.0,0.018]
[1762569116368,0.38392121,103300.0,103290.0,0.018]
[1762569116677,0.2738048,103300.0,103290.0,0.3788]
[1762569116876,0.2738048,103300.0,103290.0,0.4756778]
[1762569119667,0.1769364,103300.0,103290.0,0.4756778]
[1762569121280,0.2738048,103300.0,103290.0,0.4756778]
[1762569121682,0.1769364,103300.0,103290.0,0.4756778]
[1762569122479,0.1769364,103300.0,103290.0,0.58579421]
[1762569123180,0.1769364,103300.0,103290.0,0.4756778]
[1762569123385,0.2738048,103300.0,103290.0,0.3788]
[1762569123884,0.2738048,103300.0,103290.0,0.4756778]
[1762569124481,0.1769364,103300.0,103290.0,0.58579421]
[1762569124785,0.14227783,103300.0,103290.0,0.58579421]
[1762569125279,0.21198244,103300.0,103290.0,0.58579421]
[1762569125486,0.0551156,103300.0,103290.0,0.58579421]
[1762569125978,0.14227783,103300.0,103290.0,0.58579421]
[1762569127687,0.21195024,103300.0,103290.0,0.58579421]
[1762569127883,0.12478801,103300.0,103290.0,0.58579421]
[1762569133386,0.22165651,103300.0,103290.0,0.4756778]
[1762569134091,0.12478801,103300.0,103290.0,0.4756778]
[1762569136483,0.12478801,103300.0,103290.0,0.58579421]
[1762569142982,0.10375801,103300.0,103290.0,0.58579421]
[1762569143189,0.08254801,103300.0,103290.0,0.58579421]
[1762569144396,0.0128756,103300.0,103290.0,0.58579421]
[1762569144590,0.08254801,103300.0,103290.0,0.58579421]
[1762569145191,0.06509186,103300.0,103290.0,0.58579421]
[1762569146090,0.10444801,103300.0,103290.0,0.58579421]
[1762569146699,0.12751801,103300.0,103290.0,0.58579421]
[1762569148604,0.1547142,103300.0,103290.0,0.4756778]
[1762569148803,0.24187643,103300.0,103290.0,0.4756778]
[1762569149410,0.276535,103300.0,103290.0,0.4756778]
[1762569149598,0.637335,103300.0,103290.0,0.018]
[1762569149996,0.74745141,103300.0,103290.0,0.00399248]
[1762569150200,0.62563061,103300.0,103290.0,0.00042065]
[1762569153601,0.1547142,103300.0,103290.0,0.45809875]
[1762569153799,0.27655933,103300.0,103290.0,0.00042065]
[1762569154104,0.5155142,103300.0,103290.0,0.00042065]
[1762569156097,0.63733497,103300.0,103290.0,0.00042065]
[1762569156295,0.72434121,103300.0,103290.0,0.00042065]
[1762569156605,0.60252044,103300.0,103290.0,0.00042065]
[1762569158911,0.71263685,103300.0,103290.0,0.00042065]
[1762569161610,0.62563061,103300.0,103290.0,0.00042065]
[1762569161819,0.5155142,103300.0,103290.0,0.00042065]
[1762569162314,0.60247776,103300.0,103290.0,0.00042065]
[1762569163112,0.71259417,103300.0,103290.0,0.00042065]
[1762569164312,0.76768706,103300.0,103290.0,0.00042065]
[1762569166012,0.1542376,103280.0,103270.0,0.3609456]
[1762569166216,0.30641175,103280.0,103270.0,0.3609456]
[1762569166404,0.23684225,103280.0,103270.0,0.0001456]
[1762569166609,0.32380581,103280.0,103270.0,0.0001456]
[1762569166915,0.40641046,103280.0,103270.0,0.0001456]
[1762569167116,0.60200116,103280.0,103270.0,0.0001456]
[1762569167321,0.76821046,103280.0,103270.0,0.0101456]
[1762569167510,0.68560581,103280.0,103270.0,0.0101456]
[1762569167917,0.69260581,103280.0,103270.0,0.0111456]
[1762569168113,0.69660581,103280.0,103270.0,0.0011456]
[1762569168816,0.77921046,103280.0,103270.0,0.0011456]
[1762569169211,0.23685155,103270.0,103260.0,0.36088723]
[1762569169515,0.30637726,103270.0,103260.0,8.723e-05]
[1762569170318,0.30937726,103270.0,103260.0,0.09699353]
[1762569170517,0.31939629,103270.0,103260.0,0.09699353]
[1762569171717,0.14589474,103270.0,103260.0,0.09799353]
[1762569172018,0.24279174,103270.0,103260.0,0.54139818]
[1762569172217,0.24279174,103270.0,103260.0,0.18059818]
[1762569172516,0.24279174,103270.0,103260.0,0.54139818]
[1762569174820,0.24279174,103270.0,103260.0,0.45879363]
[1762569175019,0.24279174,103270.0,103260.0,0.54139828]
[1762569175222,0.32539639,103270.0,103260.0,0.54139828]
[1762569175915,0.32539639,103270.0,103260.0,0.44449188]
[1762569176715,0.32539639,103270.0,103260.0,0.36188723]
[1762569177619,0.32539639,103270.0,103260.0,0.45879363]
[1762569178314,0.32539639,103270.0,103260.0,0.54139828]
[1762569180018,0.24279174,103270.0,103260.0,0.54139828]
[1762569180320,0.14589474,103270.0,103260.0,0.54139828]
[1762569180723,0.24279194,103270.0,103260.0,0.54139828]
[1762569181219,0.24279194,103270.0,103260.0,0.36188723]
[1762569181416,0.32539659,103270.0,103260.0,0.00108723]
[1762569181621,0.32539659,103270.0,103260.0,0.36188723]
[1762569182624,0.70363444,103270.0,103260.0,0.00108723]
[1762569183217,0.70363444,103270.0,103260.0,0.09799383]
[1762569184817,0.70363444,103270.0,103260.0,0.00108723]
[1762569186625,0.05704,103240.0,103230.0,0.54033295]
[1762569186924,0.22359649,103240.0,103230.0,0.54033295]
[1762569187122,0.1539651,103240.0,103230.0,0.54033295]
[1762569187427,0.22359649,103240.0,103230.0,0.44340465]
[1762569187627,0.22359649,103240.0,103230.0,0.54033905]
[1762569187824,0.22368372,103240.0,103230.0,0.54033905]
[1762569188222,0.22468372,103240.0,103230.0,0.54733905]
[1762569188530,0.22568372,103240.0,103230.0,0.55633905]
[1762569188827,0.22568372,103240.0,103230.0,0.45940465]
[1762569189330,0.22568372,103240.0,103230.0,0.55633895]
[1762569189822,0.12875862,103240.0,103230.0,0.55633895]
[1762569190726,0.22568352,103240.0,103230.0,0.55633895]
[1762569191125,0.12875862,103240.0,103230.0,0.55633895]
[1762569191930,0.22568352,103240.0,103230.0,0.55633895]
[1762569192229,0.12875862,103240.0,103230.0,0.55633895]
[1762569193121,0.22568352,103240.0,103230.0,0.55633895]
[1762569194129,0.15605213,103240.0,103230.0,0.55633895]
[1762569194429,0.22568352,103240.0,103230.0,0.55633895]
[1762569194829,0.12875862,103240.0,103230.0,0.55633895]
[1762569195630,0.22568352,103240.0,103230.0,0.55633895]
[1762569200731,0.22568352,103240.0,103230.0,0.45940465]
[1762569201026,0.22568352,103240.0,103230.0,0.55633895]
[1762569201826,0.22568352,103240.0,103230.0,0.4737343]
[1762569202027,0.22568352,103240.0,103230.0,0.55633895]
[1762569209137,0.15605213,103240.0,103230.0,0.55633895]
[1762569210537,0.05912723,103240.0,103230.0,0.55633895]
[1762569212130,0.11137599,103240.0,103230.0,0.55633895]
[1762569214440,0.05812723,103240.0,103230.0,0.55033895]
[1762569214739,0.05712723,103240.0,103230.0,0.54533895]
[1762569214940,0.10941281,103240.0,103230.0,0.54533895]
[1762569215936,0.10941281,103240.0,103230.0,0.4627343]
[1762569216132,0.05712723,103240.0,103230.0,0.54533895]
[1762569216336,0.12675862,103240.0,103230.0,0.54533895]
[1762569221446,0.22368362,103240.0,103230.0,0.54533895]
[1762569222632,0.40630076,103240.0,103230.0,0.005]
[1762569223133,0.32369611,103240.0,103230.0,0.005]
[1762569223337,0.23665688,103240.0,103230.0,0.005]
[1762569223539,0.275873,103240.0,103230.0,0.1019343]
[1762569223844,0.275873,103240.0,103230.0,0.54533895]
[1762569223845,0.26614944,103240.0,103230.0,0.54533895]
[1762569224043,0.14432867,103240.0,103230.0,0.54533895]
[1762569224345,0.14432867,103240.0,103230.0,0.4627343]
[1762569224546,0.24125367,103240.0,103230.0,0.4627343]
[1762569224744,0.35148753,103240.0,103230.0,0.005]
[1762569224938,0.24125367,103240.0,103230.0,0.005]
[1762569225139,0.24124028,103240.0,103230.0,0.005]
[1762569226846,0.60204028,103240.0,103230.0,0.005]
[1762569230453,0.58457488,103240.0,103230.0,0.005]
[1762569231353,0.636673,103240.0,103230.0,0.005]
[1762569231552,0.74690686,103240.0,103230.0,0.005]
[1762569233655,0.75190686,103240.0,103230.0,0.002]
[1762569234151,0.1191744,103230.0,103210.0,0.3608]
[1762569234354,0.1552532,103210.0,103200.0,0.4577565]
[1762569234854,0.1552532,103210.0,103200.0,0.56799036]
[1762569235149,0.20750053,103210.0,103200.0,0.56799036]
[1762569235346,0.11054733,103210.0,103200.0,0.56799036]
[1762569235747,0.11054733,103210.0,103200.0,0.56999036]
[1762569236154,0.12797681,103210.0,103200.0,0.56999036]
[1762569236954,0.12797681,103210.0,103200.0,0.57299036]
[1762569237156,0.0583,103210.0,103200.0,0.57299036]
[1762569238447,0.12797681,103210.0,103200.0,0.57299036]
[1762569238648,0.1552532,103210.0,103200.0,0.57299036]
[1762569239249,0.22493001,103210.0,103200.0,0.57299036]
[1762569241251,0.22493001,103210.0,103200.0,0.4627565]
[1762569242659,0.15533101,103210.0,103200.0,0.4627565]
[1762569242855,0.22500782,103210.0,103200.0,0.4627565]
[1762569243454,0.12805462,103210.0,103200.0,0.57299036]
[1762569244354,0.15533101,103210.0,103200.0,0.57299036]
[1762569244859,0.05837781,103210.0,103200.0,0.57299036]
[1762569245457,0.06586848,103210.0,103200.0,0.57299036]
[1762569245651,0.05844781,103210.0,103200.0,0.57299036]
[1762569245852,0.12812462,103210.0,103200.0,0.57299036]
[1762569246047,0.11064686,103210.0,103200.0,0.57299036]
[1762569247360,0.11064686,103210.0,103200.0,0.72259036]
[1762569248355,0.05227686,103210.0,103200.0,1.07506422]
[1762569248554,0.05234465,103220.0,103210.0,0.0969532]
[1762569248754,0.05234465,103220.0,103210.0,0.56798706]
[1762569248956,0.05234465,103220.0,103210.0,0.81018706]
[1762569249859,0.06034465,103220.0,103210.0,0.81118706]
[1762569250054,0.06034465,103220.0,103210.0,0.56898706]
[1762569250362,0.06034465,103220.0,103210.0,0.81118706]
[1762569250560,0.05734465,103220.0,103210.0,0.81418706]
[1762569250959,0.05234465,103220.0,103210.0,0.81418706]
[1762569251258,0.05234465,103220.0,103210.0,0.57198706]
[1762569251459,0.05234465,103220.0,103210.0,0.81418706]
[1762569251655,5e-08,103220.0,103210.0,0.57198706]
[1762569251957,0.01359005,103230.0,103220.0,0.0969438]
[1762569252160,5e-08,103230.0,103220.0,0.56797766]
[1762569252351,0.01348,103240.0,103230.0,0.0969344]
[1762569252546,0.01348,103240.0,103230.0,0.56796826]
[1762569252750,0.01348,103240.0,103230.0,0.81012826]
[1762569252953,0.0581156,103250.0,103240.0,0.096925]
[1762569253146,0.0354456,103250.0,103240.0,0.56795886]
[1762569253363,0.0133356,103250.0,103240.0,0.56795886]
[1762569254863,0.0001456,103250.0,103240.0,0.92035272]
[1762569255865,0.01319,103260.0,103250.0,0.0969156]
[1762569256162,0.01319,103260.0,103250.0,0.56794946]
[1762569256457,0.05797,103260.0,103250.0,0.81006946]
[1762569256663,0.22455301,103260.0,103250.0,0.3608]
[1762569256862,0.93478687,103260.0,103250.0,0.3608]
[1762569257062,0.12764681,103260.0,103250.0,0.4577156]
[1762569257255,0.22655301,103260.0,103250.0,0.4727156]
[1762569257658,0.12964681,103260.0,103250.0,0.4727156]
[1762569257858,0.12864681,103260.0,103250.0,0.4667156]
[1762569258067,0.22555301,103260.0,103250.0,0.4667156]
[1762569258762,0.22555301,103260.0,103250.0,0.4587156]
[1762569258959,0.22455301,103260.0,103250.0,0.4617156]
[1762569259459,0.12764681,103260.0,103250.0,0.4617156]
[1762569260356,0.22455301,103260.0,103250.0,0.4617156]
[1762569260560,0.1548762,103260.0,103250.0,0.4617156]
[1762569260766,0.22455301,103260.0,103250.0,0.4617156]
[1762569264071,0.1548763,103260.0,103250.0,0.4617156]
[1762569264367,0.05797,103260.0,103250.0,0.4617156]
[1762569265377,0.1548763,103260.0,103250.0,0.4617156]
[1762569266076,0.22455311,103260.0,103250.0,0.4617156]
[1762569266373,0.12764681,103260.0,103250.0,0.57194946]
[1762569266676,0.01319,103260.0,103250.0,0.57194946]
[1762569266974,0.05721,103260.0,103250.0,0.57194946]
[1762569269274,0.02335463,103270.0,103260.0,0.0968978]
[1762569269275,0.04619463,103270.0,103260.0,0.0968978]
[1762569269471,0.04619463,103270.0,103260.0,0.56793166]
[1762569270478,0.05119463,103270.0,103260.0,0.56893166]
[1762569271378,0.08286681,103280.0,103270.0,0.0968884]
[1762569271580,0.05721,103290.0,103280.0,0.0968789]
[1762569271876,0.10923409,103290.0,103280.0,0.56791276]
[1762569272270,0.11897907,103290.0,103280.0,0.56791276]
[1762569273075,0.12597907,103290.0,103280.0,0.56891276]
[1762569273390,0.08195907,103290.0,103280.0,0.56891276]
[1762569274381,0.11897907,103290.0,103280.0,0.56991276]
[1762569274581,0.07495907,103290.0,103280.0,0.56991276]
[1762569274785,0.09779907,103290.0,103280.0,0.56991276]
[1762569274980,0.12397907,103290.0,103280.0,0.56991276]
[1762569276282,0.11897907,103290.0,103280.0,0.56991276]
[1762569276484,0.11897907,103290.0,103280.0,0.57291276]
[1762569278382,0.06695498,103290.0,103280.0,0.57291276]
[1762569278584,0.11902944,103290.0,103280.0,0.57291276]
[1762569286187,0.13663179,103290.0,103280.0,0.57291276]
[1762569286487,0.09261179,103290.0,103280.0,0.62781568]
[1762569286676,0.09626823,103290.0,103280.0,0.62781568]
[1762569287088,0.11949823,103290.0,103280.0,0.62781568]
[1762569287678,0.11949823,103290.0,103280.0,0.77741568]
[1762569287984,0.05208325,103290.0,103280.0,1.10202407]
[1762569289093,0.08725325,103290.0,103280.0,0.85998407]
[1762569289390,0.08725325,103290.0,103280.0,1.10202407]
[1762569289578,0.06600325,103290.0,103280.0,0.85998407]
[1762569289786,0.11048325,103290.0,103280.0,0.6122789]
[1762569289984,0.12060163,103290.0,103280.0,0.85998407]
[1762569290189,0.09737163,103290.0,103280.0,1.01945568]
[1762569290488,0.12060163,103290.0,103280.0,1.01945568]
[1762569290685,0.09737163,103290.0,103280.0,1.01945568]
[1762569290878,0.09737163,103290.0,103280.0,0.77741568]
[1762569291492,0.09737163,103290.0,103280.0,0.62781568]
[1762569291895,0.06600325,103290.0,103280.0,0.95242407]
[1762569292194,0.06600325,103290.0,103280.0,0.71038407]
[1762569292393,0.06600325,103290.0,103280.0,0.95242407]
[1762569292782,0.06600325,103290.0,103280.0,0.71038407]
[1762569292986,0.06600325,103290.0,103280.0,0.95242407]
[1762569293698,0.08725325,103290.0,103280.0,0.71038407]
[1762569293891,0.08725325,103290.0,103280.0,0.95242407]
[1762569294693,0.08725325,103290.0,103280.0,0.71038407]
[1762569294893,0.06600325,103290.0,103280.0,0.95242407]
[1762569295397,0.08359681,103290.0,103280.0,0.95242407]
[1762569295696,0.01392,103290.0,103280.0,0.95242407]
[1762569295908,0.03517,103290.0,103280.0,0.95242407]
[1762569296109,0.06606655,103290.0,103280.0,0.71038407]
[1762569296400,0.06606655,103290.0,103280.0,0.95242407]
[1762569296590,0.06606655,103290.0,103280.0,0.71038407]
[1762569296786,0.06606655,103290.0,103280.0,0.95242407]
[1762569297102,0.10916655,103290.0,103280.0,0.95242407]
[1762569297301,0.10916655,103290.0,103280.0,0.85998407]
[1762569297598,0.10916655,103290.0,103280.0,1.10202407]
[1762569297797,0.08750655,103290.0,103280.0,1.10202407]
[1762569298192,0.10935655,103290.0,103280.0,1.10202407]
[1762569298698,0.10935655,103290.0,103280.0,0.85998407]
[1762569298886,0.10935655,103290.0,103280.0,1.10202407]
[1762569299091,0.10935655,103290.0,103280.0,0.85998407]
[1762569299494,0.10935655,103290.0,103280.0,1.10202407]
[1762569300192,0.08750655,103290.0,103280.0,0.85998407]
[1762569300392,0.06606655,103290.0,103280.0,1.10202407]
[1762569300900,0.08750655,103290.0,103280.0,1.10202407]
[1762569301200,0.10935655,103290.0,103280.0,0.77741568]
[1762569312218,0.08750655,103290.0,103280.0,0.77741568]
[1762569312513,0.08750655,103290.0,103280.0,0.85998407]
[1762569312514,0.06593655,103290.0,103280.0,0.85998407]
[1762569314515,0.05214655,103290.0,103280.0,1.10202407]
[1762569314716,0.05214655,103290.0,103280.0,0.85998407]
[1762569315017,0.05214655,103290.0,103280.0,1.12754544]
[1762569315221,0.05214655,103290.0,103280.0,1.12755267]
[1762569315711,0.05214655,103290.0,103280.0,0.88551267]
[1762569316019,0.05214655,103290.0,103280.0,1.12755267]
[1762569316209,0.05214655,103290.0,103280.0,1.12755771]
[1762569316818,0.05214655,103290.0,103280.0,1.10202407]
[1762569317220,0.05214655,103290.0,103280.0,0.85998407]
[1762569317407,0.05214655,103290.0,103280.0,1.10202407]
[1762569318120,0.05214655,103290.0,103280.0,0.85998407]
[1762569318532,0.05214655,103290.0,103280.0,1.10202407]
[1762569319033,0.05214655,103290.0,103280.0,1.12754799]
[1762569319835,0.05214655,103290.0,103280.0,0.88550799]
[1762569320037,0.05214655,103290.0,103280.0,1.12754799]
[1762569320628,0.06593655,103290.0,103280.0,1.12754799]
[1762569320828,0.06593655,103290.0,103280.0,0.88550799]
[1762569321236,0.06593655,103290.0,103280.0,0.85998407]
[1762569321434,0.06593655,103290.0,103280.0,1.10202407]
[1762569321833,0.10922655,103290.0,103280.0,1.10202407]
[1762569322025,0.10922655,103290.0,103280.0,0.8855068]
[1762569322224,0.10922655,103290.0,103280.0,0.85998407]
[1762569324229,0.10922655,103290.0,103280.0,0.88550416]
[1762569325042,0.05708,103290.0,103280.0,0.77741568]
[1762569325239,0.12675681,103290.0,103280.0,0.77741568]
[1762569328135,0.05708,103290.0,103280.0,0.77741568]
[1762569329238,0.12675681,103290.0,103280.0,0.77741568]
[1762569331240,0.05708,103290.0,103280.0,0.77741568]
[1762569336038,0.12675681,103290.0,103280.0,0.77741568]
[1762569339139,0.12675681,103290.0,103280.0,0.85998407]
[1762569339438,0.06609295,103290.0,103280.0,0.85998407]
[1762569339744,0.08760295,103290.0,103280.0,0.85998407]
[1762569339933,0.0353,103290.0,103280.0,0.85998407]
[1762569340134,0.05752,103290.0,103280.0,0.85998407]
[1762569340537,0.10982202,103290.0,103280.0,0.77741568]
[1762569341347,0.05752,103290.0,103280.0,0.85998407]
[1762569343154,0.11608363,103300.0,103290.0,0.0968693]
[1762569343336,0.08299241,103300.0,103290.0,0.77240608]
[1762569343947,0.10593241,103300.0,103290.0,0.77240608]
[1762569344139,0.10593241,103300.0,103290.0,0.85497447]
[1762569344338,0.10893241,103300.0,103290.0,0.77240608]
[1762569345647,0.11193241,103300.0,103290.0,0.77240608]
[1762569346149,0.09453454,103300.0,103290.0,0.85497447]
[1762569346446,0.0193156,103300.0,103290.0,0.7979073]
[1762569346646,0.0173156,103300.0,103290.0,0.8079073]
[1762569346844,0.0143156,103300.0,103290.0,0.8079073]
[1762569347038,0.0153156,103300.0,103290.0,0.8169073]
[1762569347247,0.0021456,103300.0,103290.0,0.8169073]
[1762569347943,0.06725454,103300.0,103290.0,0.79140608]
[1762569348141,0.11256454,103300.0,103290.0,0.79140608]
[1762569348343,0.0602856,103300.0,103290.0,0.76179217]
[1762569348948,0.0149756,103300.0,103290.0,0.76179217]
[1762569352049,0.0021456,103300.0,103290.0,0.76179217]
[1762569354343,0.0379156,103300.0,103290.0,0.76179217]
[1762569354648,0.0602856,103300.0,103290.0,0.73630255]
[1762569356046,0.0602856,103300.0,103290.0,0.76176786]
[1762569356351,0.0602856,103300.0,103290.0,0.73630255]
[1762569358438,0.0602856,103300.0,103290.0,0.81280907]
[1762569362055,0.0602856,103300.0,103290.0,0.83827327]
[1762569363057,0.0602856,103300.0,103290.0,0.70277582]
[1762569363253,0.11256454,103300.0,103290.0,0.81280907]
[1762569364361,0.0602856,103300.0,103290.0,0.81280907]
[1762569365260,0.11256454,103300.0,103290.0,0.81280907]
[1762569366250,0.0602856,103300.0,103290.0,0.83828666]
[1762569366645,0.0602856,103300.0,103290.0,0.76178014]
[1762569367662,0.11256454,103300.0,103290.0,0.73630255]
[1762569367854,0.11256454,103300.0,103290.0,0.76178872]
[1762569368056,0.0602856,103300.0,103290.0,0.76178872]
[1762569368257,0.11256454,103300.0,103290.0,0.73630255]
[1762569369060,0.20942404,103300.0,103290.0,0.5294]
[1762569369261,0.20942404,103300.0,103290.0,0.40529187]
[1762569369563,0.20942404,103300.0,103290.0,0.3798]
[1762569369564,0.12996241,103300.0,103290.0,0.3798]
[1762569369760,0.12996241,103300.0,103290.0,0.58670215]
[1762569371071,0.22682191,103300.0,103290.0,0.58670215]
[1762569371970,0.22682191,103300.0,103290.0,0.48983325]
[1762569372264,0.22682191,103300.0,103290.0,0.58670205]
[1762569372462,0.22682191,103300.0,103290.0,0.48983325]
[1762569372660,0.22682191,103300.0,103290.0,0.58670205]
[1762569373057,0.10759241,103300.0,103290.0,0.58670205]
[1762569373259,0.0901664,103300.0,103290.0,0.58670205]
[1762569373454,0.0672264,103300.0,103290.0,0.94750205]
[1762569374563,0.0149756,103300.0,103290.0,0.97298975]
[1762569377672,0.0364956,103300.0,103290.0,0.97298975]
[1762569377866,0.0149756,103300.0,103290.0,0.97298975]
[1762569378767,0.0149756,103300.0,103290.0,1.12258975]
[1762569379471,0.0578556,103300.0,103290.0,1.12258975]
[1762569380171,0.0578556,103300.0,103290.0,1.19832919]
[1762569381563,0.0149756,103300.0,103290.0,1.19832919]
[1762569381763,0.0364956,103300.0,103290.0,1.19832919]
[1762569381964,0.0149756,103300.0,103290.0,1.19832919]
[1762569383273,0.0364956,103300.0,103290.0,1.19832919]
[1762569384272,0.0578556,103300.0,103290.0,1.19832919]
[1762569386076,0.0578556,103300.0,103290.0,1.17284149]
[1762569387179,0.0149756,103300.0,103290.0,1.17284149]